fUSD/lending_fUSD_20250610
["ID","MTS","AMOUNT","RATE_DAILY","PERIOD"]
[365285561,1749579040691,-604.96,0.00016441,2]
[365285563,1749579040702,-1232.92390347,0.00016502,2]
[365285565,1749579040711,-1430.2148,0.00016508,2]
[365285567,1749579040721,-490.0,0.00016602,2]
[365285569,1749579040730,-480.0,0.00016602,2]
[365285571,1749579040740,-504.72,0.00016602,2]
[365285573,1749579040750,-490.0,0.00016602,2]
[365285575,1749579040760,-185.23065431,0.00016602,2]
[365285577,1749579040771,-512.03,0.00016602,2]
[365285579,1749579040780,-490.0,0.00016602,2]
[365285581,1749579040790,-490.0,0.00016602,2]
[365285583,1749579040800,-490.0,0.00016602,2]
[365285585,1749579040809,-490.0,0.00016602,2]
[365285587,1749579040818,-1649.3,0.00016602,2]
[365285589,1749579040828,-490.0,0.00016602,2]
[365285591,1749579040837,-490.0,0.00016602,2]
[365285593,1749579040847,-490.0,0.00016602,2]
[365285595,1749579040856,-356.95,0.00016602,2]
[365285597,1749579040865,-490.0,0.00016602,2]
[365285599,1749579040874,-490.0,0.00016602,2]
[365285601,1749579040884,-490.0,0.00016602,2]
[365285602,1749579040893,-460.0,0.00016602,2]
[365285605,1749579040903,-490.0,0.00016602,2]
[365285607,1749579040913,-490.0,0.00016602,2]
[365285609,1749579040923,-490.0,0.00016602,2]
[365285611,1749579040933,-490.0,0.00016602,2]
[365285613,1749579040943,-490.0,0.00016602,2]
[365285615,1749579040953,-490.0,0.00016602,2]
[365285617,1749579040963,-490.0,0.00016602,2]
[365285619,1749579040972,-490.0,0.00016602,2]
[365285621,1749579040981,-490.0,0.00016602,2]
[365285623,1749579040991,-507.2,0.00016602,2]
[365285625,1749579041001,-490.0,0.00016602,2]
[365285627,1749579041010,-490.0,0.00016602,2]
[365285629,1749579041019,-1009.4,0.00016602,2]
[365285631,1749579041028,-490.0,0.00016602,2]
[365285633,1749579041037,-430.67,0.00016602,2]
[365285635,1749579041050,-490.0,0.00016602,2]
[365285637,1749579041059,-547.84,0.00016602,2]
[365285639,1749579041068,-490.0,0.00016602,2]
[365285641,1749579041077,-287.03097971,0.00016602,2]
[365285643,1749579041086,-490.0,0.00016602,2]
[365285645,1749579041095,-533.44,0.00016602,2]
[365285647,1749579041104,-249.32,0.00016602,2]
[365285649,1749579041114,-490.0,0.00016602,2]
[365285651,1749579041123,-490.0,0.00016602,2]
[365285653,1749579041132,-730.72,0.00016602,2]
[365285655,1749579041141,-502.05,0.00016602,2]
[365285657,1749579041151,-490.0,0.00016602,2]
[365285659,1749579041161,-490.0,0.00016602,2]
[365285661,1749579041170,-490.0,0.00016602,2]
[365285663,1749579041180,-490.0,0.00016602,2]
[365285665,1749579041189,-1016.47,0.00016602,2]
[365285667,1749579041199,-460.0,0.00016602,2]
[365285669,1749579041209,-409.86739457,0.00016602,2]
[365285671,1749579041218,-490.0,0.00016602,2]
[365285673,1749579041227,-490.0,0.00016602,2]
[365285675,1749579041239,-490.0,0.00016602,2]
[365285677,1749579041252,-538.07,0.00016602,2]
[365285679,1749579041268,-490.0,0.00016602,2]
[365285681,1749579041289,-490.0,0.00016602,2]
[365285683,1749579041302,-490.0,0.00016602,2]
[365285685,1749579041311,-490.0,0.00016602,2]
[365285687,1749579041321,-1702.17,0.00016602,2]
[365285689,1749579041330,-490.0,0.00016602,2]
[365285691,1749579041341,-490.0,0.00016602,2]
[365285714,1749579041564,-490.0,0.00016602,2]
[365285717,1749579041576,-490.0,0.00016602,2]
[365285719,1749579041585,-490.0,0.00016602,2]
[365285721,1749579041595,-490.0,0.00016602,2]
[365285723,1749579041604,-490.0,0.00016602,2]
[365285724,1749579041613,-174.88616985,0.00016602,2]
[365285726,1749579041622,-490.0,0.00016602,2]
[365285728,1749579041631,-212.73,0.00016602,2]
[365285730,1749579041640,-490.0,0.00016602,2]
[365285732,1749579041650,-490.0,0.00016602,2]
[365285734,1749579041659,-318.1620866,0.00016602,2]
[365285736,1749579041669,-490.0,0.00016602,2]
[365285738,1749579041678,-10780.1,0.00016602,2]
[365285740,1749579041688,-782.52,0.00016602,2]
[365285742,1749579041697,-989.88,0.00016602,2]
[365285744,1749579041707,-490.0,0.00016602,2]
[365285746,1749579041716,-490.0,0.00016602,2]
[365285748,1749579041726,-490.0,0.00016602,2]
[365285750,1749579041735,-490.0,0.00016602,2]
[365285753,1749579041745,-490.0,0.00016602,2]
[365285754,1749579041755,-490.0,0.00016602,2]
[365285756,1749579041764,-490.0,0.00016602,2]
[365285758,1749579041774,-515.35,0.00016602,2]
[365285760,1749579041783,-490.0,0.00016602,2]
[365285762,1749579041792,-550.43,0.00016602,2]
[365285764,1749579041802,-490.0,0.00016602,2]
[365285766,1749579041814,-527.26,0.00016602,2]
[365285768,1749579041823,-490.0,0.00016602,2]
[365285770,1749579041833,-7591.54,0.00016608,2]
[365285771,1749579041843,-201.0,0.00016652,2]
[365285772,1749579041852,-150.0,0.00016723,7]
[365285773,1749579041863,-490.0,0.00016767,2]
[365285774,1749579041873,-405.53,0.00016767,2]
[365285775,1749579041883,-490.0,0.00016767,2]
[365285776,1749579041893,-490.0,0.00016767,2]
[365285777,1749579041902,-1649.3,0.00016767,2]
[365285778,1749579041915,-490.0,0.00016767,2]
[365285779,1749579041925,-490.0,0.00016767,2]
[365285781,1749579041935,-510.58,0.00016767,2]
[365285783,1749579041947,-490.0,0.00016767,2]
[365285785,1749579041957,-490.0,0.00016767,2]
[365285787,1749579041966,-1009.4,0.00016767,2]
[365285789,1749579041976,-490.0,0.00016767,2]
[365285791,1749579041986,-490.0,0.00016767,2]
[365285793,1749579041996,-490.0,0.00016767,2]
[365285795,1749579042007,-730.72,0.00016767,2]
[365285796,1749579042017,-490.0,0.00016767,2]
[365285798,1749579042026,-282.9,0.00016767,2]
[365285800,1749579042036,-1016.47,0.00016767,2]
[365285802,1749579042047,-490.0,0.00016767,2]
[365285804,1749579042056,-490.0,0.00016767,2]
[365285806,1749579042066,-538.07,0.00016767,2]
[365285808,1749579042076,-490.0,0.00016767,2]
[365285810,1749579042086,-490.0,0.00016767,2]
[365285813,1749579042095,-490.0,0.00016767,2]
[365285815,1749579042106,-1702.17,0.00016767,2]
[365285817,1749579042115,-490.0,0.00016767,2]
[365285819,1749579042125,-490.0,0.00016767,2]
[365285821,1749579042135,-490.0,0.00016767,2]
[365285822,1749579042144,-490.0,0.00016767,2]
[365285824,1749579042153,-490.0,0.00016767,2]
[365285826,1749579042162,-175.87,0.00016767,2]
[365285828,1749579042171,-490.0,0.00016767,2]
[365285830,1749579042181,-10780.1,0.00016767,2]
[365285831,1749579042195,-782.52,0.00016767,2]
[365285833,1749579042204,-989.88,0.00016767,2]
[365285835,1749579042214,-490.0,0.00016767,2]
[365285837,1749579042223,-490.0,0.00016767,2]
[365285839,1749579042233,-490.0,0.00016767,2]
[365285841,1749579042242,-490.0,0.00016767,2]
[365285843,1749579042252,-490.0,0.00016767,2]
[365285845,1749579042262,-490.0,0.00016767,2]
[365285847,1749579042272,-512.46975903,0.00016767,2]
[365285849,1749579042284,-515.35,0.00016767,2]
[365285851,1749579042294,-490.0,0.00016767,2]
[365285853,1749579042304,-550.43,0.00016767,2]
[365285854,1749579042315,-490.0,0.00016767,2]
[365285856,1749579042324,-527.26,0.00016767,2]
[365285859,1749579042334,-1000.0,0.00016789,2]
[365285861,1749579042343,-5000.0,0.00016831,2]
[365285863,1749579042354,-166.57135391,0.00016831,2]
[365285865,1749579042364,-1232.92390341,0.0001688,2]
[365285867,1749579042374,-640.53,0.0001693,2]
[365285869,1749579042384,-490.0,0.00016931,2]
[365285871,1749579042394,-490.0,0.00016931,2]
[365285873,1749579042404,-1649.3,0.00016931,2]
[365285875,1749579042414,-490.0,0.00016931,2]
[365285877,1749579042423,-490.0,0.00016931,2]
[365285879,1749579042433,-1009.4,0.00016931,2]
[365285881,1749579042449,-490.0,0.00016931,2]
[365285883,1749579042459,-490.0,0.00016931,2]
[365285885,1749579042468,-490.0,0.00016931,2]
[365285886,1749579042478,-730.72,0.00016931,2]
[365285888,1749579042487,-305.78,0.00016931,2]
[365285890,1749579042496,-1016.47,0.00016931,2]
[365285892,1749579042506,-538.07,0.00016931,2]
[365285895,1749579042517,-490.0,0.00016931,2]
[365285897,1749579042527,-490.0,0.00016931,2]
[365285900,1749579042536,-1702.17,0.00016931,2]
[365285902,1749579042545,-490.0,0.00016931,2]
[365285904,1749579042555,-490.0,0.00016931,2]
[365285906,1749579042565,-490.0,0.00016931,2]
[365285908,1749579042575,-490.0,0.00016931,2]
[365285909,1749579042585,-10780.1,0.00016931,2]
[365285912,1749579042595,-782.52,0.00016931,2]
[365285913,1749579042604,-989.88,0.00016931,2]
[365285915,1749579042614,-490.0,0.00016931,2]
[365285917,1749579042624,-490.0,0.00016931,2]
[365285919,1749579042634,-490.0,0.00016931,2]
[365285921,1749579042644,-524.77260575,0.00016931,2]
[365285923,1749579042654,-490.0,0.00016931,2]
[365285926,1749579042664,-490.0,0.00016931,2]
[365285928,1749579042674,-515.35,0.00016931,2]
[365285930,1749579042684,-490.0,0.00016931,2]
[365285932,1749579042699,-550.43,0.00016931,2]
[365285934,1749579042709,-490.0,0.00016931,2]
[365285936,1749579042719,-527.26,0.00016931,2]
[365285938,1749579042728,-490.0,0.00017095,2]
[365285940,1749579042738,-372.63,0.00017095,2]
[365285942,1749579042748,-1649.3,0.00017095,2]
[365285944,1749579042757,-490.0,0.00017095,2]
[365285946,1749579042767,-490.0,0.00017095,2]
[365285948,1749579042777,-1009.4,0.00017095,2]
[365285949,1749579042786,-490.0,0.00017095,2]
[365285952,1749579042796,-490.0,0.00017095,2]
[365285954,1749579042806,-490.0,0.00017095,2]
[365285956,1749579042816,-730.72,0.00017095,2]
[365285958,1749579042826,-1016.47,0.00017095,2]
[365285960,1749579042836,-538.07,0.00017095,2]
[365285962,1749579042845,-490.0,0.00017095,2]
[365285964,1749579042855,-490.0,0.00017095,2]
[365285966,1749579042864,-1702.17,0.00017095,2]
[365285967,1749579042873,-490.0,0.00017095,2]
[365285969,1749579042883,-490.0,0.00017095,2]
[365285971,1749579042891,-10780.1,0.00017095,2]
[365285973,1749579042901,-782.52,0.00017095,2]
[365285975,1749579042911,-989.88,0.00017095,2]
[365285977,1749579042922,-490.0,0.00017095,2]
[365285979,1749579042931,-490.0,0.00017095,2]
[365285981,1749579042944,-490.0,0.00017095,2]
[365285983,1749579042954,-490.0,0.00017095,2]
[365285985,1749579042964,-490.0,0.00017095,2]
[365285987,1749579042973,-515.35,0.00017095,2]
[365285989,1749579042983,-490.0,0.00017095,2]
[365285991,1749579042992,-550.43,0.00017095,2]
[365285993,1749579043002,-490.0,0.00017095,2]
[365285995,1749579043011,-527.26,0.00017095,2]
[365285997,1749579043020,-500.0,0.00017142,2]
[365285999,1749579043029,-201.0,0.00017145,2]
[365286001,1749579043040,-1000.0,0.0001717,2]
[365286003,1749579043058,-500.0,0.00017173,2]
[365286005,1749579043068,-500.0,0.00017192,2]
[365286007,1749579043078,-833.29909032,0.00017241,2]
[365286009,1749579043088,-1232.92390341,0.00017257,2]
[365286011,1749579043098,-500.0,0.00017259,2]
[365286013,1749579043108,-1649.3,0.0001726,2]
[365286015,1749579043117,-490.0,0.0001726,2]
[365286017,1749579043126,-490.0,0.0001726,2]
[365286019,1749579043135,-1009.4,0.0001726,2]
[365286021,1749579043144,-490.0,0.0001726,2]
[365286023,1749579043153,-490.0,0.0001726,2]
[365286025,1749579043163,-490.0,0.0001726,2]
[365286027,1749579043172,-730.72,0.0001726,2]
[365286029,1749579043181,-1016.47,0.0001726,2]
[365286031,1749579043194,-538.07,0.0001726,2]
[365286033,1749579043203,-490.0,0.0001726,2]
[365286035,1749579043213,-490.0,0.0001726,2]
[365286037,1749579043222,-1702.17,0.0001726,2]
[365286039,1749579043232,-490.0,0.0001726,2]
[365286041,1749579043241,-490.0,0.0001726,2]
[365286043,1749579043249,-10780.1,0.0001726,2]
[365286045,1749579043259,-782.52,0.0001726,2]
[365286047,1749579043269,-989.88,0.0001726,2]
[365286049,1749579043280,-490.0,0.0001726,2]
[365286051,1749579043290,-358.06,0.0001726,2]
[365286053,1749579043299,-490.0,0.0001726,2]
[365286055,1749579043308,-463.12,0.0001726,2]
[365286057,1749579043319,-490.0,0.0001726,2]
[365286059,1749579043328,-515.35,0.0001726,2]
[365286061,1749579043337,-490.0,0.0001726,2]
[365286063,1749579043346,-550.43,0.0001726,2]
[365286065,1749579043357,-490.0,0.0001726,2]
[365286066,1749579043366,-527.26,0.0001726,2]
[365286068,1749579043375,-1006.0,0.00017283,2]
[365286070,1749579043384,-512.75251396,0.000173,2]
[365286072,1749579043394,-512.75251391,0.000173,2]
[365286074,1749579043402,-512.75251391,0.000173,2]
[365286076,1749579043412,-512.75251391,0.000173,2]
[365286078,1749579043421,-512.75251391,0.00017314,2]
[365286080,1749579043430,-560.45761502,0.00017324,2]
[365286082,1749579043443,-1777.0,0.00017368,2]
[365286084,1749579043452,-512.75251391,0.00017417,2]
[365286086,1749579043461,-1649.3,0.00017424,2]
[365286088,1749579043471,-490.0,0.00017424,2]
[365286090,1749579043480,-185.7603487,0.00017424,2]
[365286092,1749579043489,-1009.4,0.00017424,2]
[365286094,1749579043499,-490.0,0.00017424,2]
[365286096,1749579043507,-490.0,0.00017424,2]
[365286098,1749579043517,-490.0,0.00017424,2]
[365286100,1749579043526,-730.72,0.00017424,2]
[365286102,1749579043535,-1016.47,0.00017424,2]
[365286104,1749579043544,-538.07,0.00017424,2]
[365286106,1749579043554,-490.0,0.00017424,2]
[365286108,1749579043563,-566.72710159,0.00017424,2]
[365286110,1749579043572,-1702.17,0.00017424,2]
[365286112,1749579043581,-490.0,0.00017424,2]
[365286114,1749579043591,-490.0,0.00017424,2]
[365286116,1749579043600,-10780.1,0.00017424,2]
[365286118,1749579043609,-782.52,0.00017424,2]
[365286120,1749579043619,-989.88,0.00017424,2]
[365286122,1749579043628,-490.0,0.00017424,2]
[365286124,1749579043637,-490.0,0.00017424,2]
[365286126,1749579043648,-490.0,0.00017424,2]
[365286128,1749579043657,-515.35,0.00017424,2]
[365286130,1749579043666,-490.0,0.00017424,2]
[365286132,1749579043675,-550.43,0.00017424,2]
[365286134,1749579043685,-490.0,0.00017424,2]
[365286136,1749579043695,-527.26,0.00017424,2]
[365286138,1749579043704,-1407.0,0.00017452,2]
[365286140,1749579043714,-1431.0,0.00017456,2]
[365286142,1749579043723,-512.75251391,0.00017521,2]
[365286144,1749579043733,-812.0,0.00017537,2]
[365286146,1749579043746,-977.0,0.00017542,2]
[365286148,1749579043756,-1649.3,0.00017589,2]
[365286150,1749579043765,-490.0,0.00017589,2]
[365286152,1749579043775,-1009.4,0.00017589,2]
[365286154,1749579043784,-231.48665258,0.00017589,2]
[365286156,1749579043793,-490.0,0.00017589,2]
[365286158,1749579043802,-490.0,0.00017589,2]
[365286160,1749579043811,-730.72,0.00017589,2]
[365286162,1749579043821,-1016.47,0.00017589,2]
[365286164,1749579043830,-538.07,0.00017589,2]
[365286166,1749579043839,-490.0,0.00017589,2]
[365286168,1749579043849,-1702.17,0.00017589,2]
[365286170,1749579043858,-490.0,0.00017589,2]
[365286172,1749579043867,-490.0,0.00017589,2]
[365286174,1749579043876,-10780.1,0.00017589,2]
[365286176,1749579043885,-782.52,0.00017589,2]
[365286178,1749579043894,-989.88,0.00017589,2]
[365286180,1749579043904,-490.0,0.00017589,2]
[365286182,1749579043914,-490.0,0.00017589,2]
[365286184,1749579043923,-490.0,0.00017589,2]
[365286186,1749579043932,-515.35,0.00017589,2]
[365286188,1749579043943,-490.0,0.00017589,2]
[365286190,1749579043953,-550.43,0.00017589,2]
[365286192,1749579043963,-490.0,0.00017589,2]
[365286194,1749579043972,-527.26,0.00017589,2]
[365286196,1749579043981,-560.45761494,0.00017597,2]
[365286198,1749579043990,-512.75251391,0.00017624,2]
[365286200,1749579043999,-1638.0,0.00017627,2]
[365286202,1749579044009,-1232.92390341,0.00017635,2]
[365286204,1749579044019,-201.0,0.00017638,3]
[365286206,1749579044029,-375.0,0.00017677,2]
[365286208,1749579044038,-1887.0,0.00017708,2]
[365286210,1749579044047,-411.0,0.00017713,2]
[365286212,1749579044056,-512.75251391,0.00017728,2]
[365286214,1749579044065,-1649.3,0.00017753,2]
[365286216,1749579044074,-490.0,0.00017753,2]
[365286218,1749579044084,-1009.4,0.00017753,2]
[365286220,1749579044093,-180.95311869,0.00017753,2]
[365286221,1749579044102,-490.0,0.00017753,2]
[365286223,1749579044111,-730.72,0.00017753,2]
[365286225,1749579044121,-1016.47,0.00017753,2]
[365286227,1749579044137,-538.07,0.00017753,2]
[365286229,1749579044146,-511.82,0.00017753,2]
[365286231,1749579044157,-1702.17,0.00017753,2]
[365286233,1749579044167,-490.0,0.00017753,2]
[365286235,1749579044177,-490.0,0.00017753,2]
[365286237,1749579044187,-10780.1,0.00017753,2]
[365286239,1749579044198,-782.52,0.00017753,2]
[365286241,1749579044209,-989.88,0.00017753,2]
[365286243,1749579044219,-428.9912731,0.00017753,2]
[365286245,1749579044228,-490.0,0.00017753,2]
[365286247,1749579044237,-490.0,0.00017753,2]
[365286249,1749579044247,-515.35,0.00017753,2]
[365286251,1749579044256,-490.0,0.00017753,2]
[365286253,1749579044265,-550.43,0.00017753,2]
[365286255,1749579044277,-490.0,0.00017753,2]
[365286257,1749579044286,-527.26,0.00017753,2]
[365286259,1749579044295,-1841.0,0.00017763,2]
[365286261,1749579044304,-5789.23385536,0.00017782,2]
[365286263,1749579044315,-1509.0,0.00017795,2]
[365286265,1749579044324,-1048.0,0.00017799,2]
[365286267,1749579044333,-500.0,0.00017808,2]
[365286269,1749579044343,-190.47944605,0.00017808,2]
[365286271,1749579044353,-512.75251391,0.00017831,2]
[365286273,1749579044362,-1000.0,0.00017863,2]
[365286275,1749579044371,-207.4,0.00017863,2]
[365286277,1749579044381,-1957.856,0.00017863,2]
[365286279,1749579044390,-255.30836092,0.00017863,2]
[365286281,1749579044400,-151.0,0.00017863,2]
[365286283,1749579044411,-560.45761494,0.0001787,2]
[365286285,1749579044420,-323.0,0.00017884,2]
[365286287,1749579044428,-161.83725777,0.000179,2]
[365286289,1749579044440,-161.83725777,0.000179,2]
[365286291,1749579044450,-161.83725777,0.000179,2]
[365286293,1749579044460,-1649.3,0.00017917,2]
[365286294,1749579044470,-490.0,0.00017917,2]
[365286295,1749579044480,-1009.4,0.00017917,2]
[365286296,1749579044491,-490.0,0.00017917,2]
[365286297,1749579044501,-730.72,0.00017917,2]
[365286298,1749579044511,-1016.47,0.00017917,2]
[365286299,1749579044522,-538.07,0.00017917,2]
[365286300,1749579044532,-1702.17,0.00017917,2]
[365286302,1749579044544,-490.0,0.00017917,2]
[365286304,1749579044554,-161.7,0.00017917,2]
[365286306,1749579044564,-10780.1,0.00017917,2]
[365286308,1749579044574,-782.52,0.00017917,2]
[365286310,1749579044584,-989.88,0.00017917,2]
[365286312,1749579044593,-490.0,0.00017917,2]
[365286314,1749579044603,-490.0,0.00017917,2]
[365286316,1749579044613,-515.35,0.00017917,2]
[365286317,1749579044622,-490.0,0.00017917,2]
[365286318,1749579044632,-550.43,0.00017917,2]
[365286319,1749579044642,-490.0,0.00017917,2]
[365286320,1749579044652,-527.26,0.00017917,2]
[365286321,1749579044662,-860.54210213,0.00017918,2]
[365286322,1749579044671,-512.75251391,0.00017934,2]
[365286323,1749579044681,-152.0,0.00017987,3]
[365286324,1749579044692,-1000.0,0.00017999,2]
[365286325,1749579044701,-1232.92390341,0.00018012,2]
[365286326,1749579044711,-512.75251391,0.00018038,2]
[365286327,1749579044722,-1680.0,0.00018053,2]
[365286329,1749579044732,-640.53,0.00018081,2]
[365286331,1749579044741,-1649.3,0.00018082,2]
[365286332,1749579044752,-490.0,0.00018082,2]
[365286333,1749579044761,-1009.4,0.00018082,2]
[365286334,1749579044770,-490.0,0.00018082,2]
[365286335,1749579044780,-730.72,0.00018082,2]
[365286336,1749579044789,-1016.47,0.00018082,2]
[365286338,1749579044798,-538.07,0.00018082,2]
[365286339,1749579044808,-1702.17,0.00018082,2]
[365286340,1749579044818,-490.0,0.00018082,2]
[365286341,1749579044828,-10780.1,0.00018082,2]
[365286342,1749579044838,-782.52,0.00018082,2]
[365286343,1749579044848,-989.88,0.00018082,2]
[365286344,1749579044858,-210.90611852,0.00018082,2]
[365286345,1749579044869,-490.0,0.00018082,2]
[365286346,1749579044879,-515.35,0.00018082,2]
[365286347,1749579044890,-490.0,0.00018082,2]
[365286348,1749579044900,-550.43,0.00018082,2]
[365286349,1749579044910,-490.0,0.00018082,2]
[365286350,1749579044919,-527.26,0.00018082,2]
[365286351,1749579044928,-796.87,0.00018082,2]
[365286352,1749579044939,-461.25,0.00018082,2]
[365286353,1749579044948,-4085.0,0.00018088,2]
[365286354,1749579044958,-155.0,0.00018088,2]
[365286355,1749579044968,-7064.0,0.00018088,2]
[365286356,1749579044977,-883.0,0.00018088,2]
[365286357,1749579044986,-853.0,0.00018088,2]
[365286358,1749579044995,-201.0,0.0001813,3]
[365286359,1749579045005,-512.75251391,0.00018141,2]
[365286360,1749579045014,-560.45761494,0.00018142,2]
[365286361,1749579045023,-161.83725777,0.00018219,2]
[365286362,1749579045032,-512.75251391,0.00018245,2]
[365286363,1749579045041,-1649.3,0.00018246,2]
[365286364,1749579045050,-580.24773846,0.00018246,2]
[365286365,1749579045060,-1009.4,0.00018246,2]
[365286366,1749579045070,-490.0,0.00018246,2]
[365286367,1749579045079,-730.72,0.00018246,2]
[365286368,1749579045089,-1016.47,0.00018246,2]
[365286369,1749579045098,-538.07,0.00018246,2]
[365286370,1749579045107,-1702.17,0.00018246,2]
[365286371,1749579045117,-490.0,0.00018246,2]
[365286372,1749579045127,-10780.1,0.00018246,2]
[365286373,1749579045135,-782.52,0.00018246,2]
[365286374,1749579045145,-989.88,0.00018246,2]
[365286375,1749579045155,-490.0,0.00018246,2]
[365286376,1749579045164,-515.35,0.00018246,2]
[365286377,1749579045174,-490.0,0.00018246,2]
[365286378,1749579045183,-550.43,0.00018246,2]
[365286379,1749579045194,-490.0,0.00018246,2]
[365286380,1749579045203,-527.26,0.00018246,2]
[365286381,1749579045213,-512.75251391,0.00018348,2]
[365286382,1749579045222,-150.0,0.00018356,2]
[365286383,1749579045231,-341.22,0.00018356,2]
[365286384,1749579045240,-423.48,0.00018356,2]
[365286385,1749579045249,-300.0,0.00018356,2]
[365286386,1749579045259,-454.85,0.00018356,2]
[365286387,1749579045268,-708.68,0.00018356,2]
[365286388,1749579045281,-1163.59,0.00018356,2]
[365286389,1749579045290,-454.85,0.00018356,2]
[365286390,1749579045299,-454.85,0.00018356,2]
[365286391,1749579045309,-708.8,0.00018356,2]
[365286393,1749579045319,-454.85,0.00018356,2]
[365286395,1749579045328,-454.85,0.00018356,2]
[365286396,1749579045337,-454.85,0.00018356,2]
[365286397,1749579045347,-454.85,0.00018356,2]
[365286398,1749579045358,-454.85,0.00018356,2]
[365286399,1749579045367,-1232.92390341,0.0001839,2]
[365286400,1749579045377,-1649.3,0.0001841,2]
[365286401,1749579045386,-1009.4,0.0001841,2]
[365286402,1749579045396,-490.0,0.0001841,2]
[365286403,1749579045405,-730.72,0.0001841,2]
[365286404,1749579045415,-1016.47,0.0001841,2]
[365286405,1749579045424,-538.07,0.0001841,2]
[365286407,1749579045434,-1702.17,0.0001841,2]
[365286408,1749579045445,-490.0,0.0001841,2]
[365286409,1749579045454,-10780.1,0.0001841,2]
[365286410,1749579045463,-782.52,0.0001841,2]
[365286411,1749579045473,-989.88,0.0001841,2]
[365286412,1749579045482,-490.0,0.0001841,2]
[365286413,1749579045491,-515.35,0.0001841,2]
[365286414,1749579045500,-490.0,0.0001841,2]
[365286415,1749579045510,-550.43,0.0001841,2]
[365286416,1749579045519,-490.0,0.0001841,2]
[365286417,1749579045528,-527.26,0.0001841,2]
[365286418,1749579045539,-560.45761494,0.00018415,2]
[365286419,1749579045548,-191.68,0.00018431,2]
[365286420,1749579045557,-245.0,0.00018444,2]
[365286421,1749579045735,-151.0,0.00018444,2]
[365286422,1749579045746,-150.0,0.00018444,2]
[365286423,1749579045756,-150.0,0.00018444,2]
[365286424,1749579045767,-150.0,0.00018444,2]
[365286425,1749579045776,-150.0,0.00018444,2]
[365286426,1749579045787,-154.33,0.00018444,2]
[365286427,1749579045798,-150.161,0.00018444,2]
[365286428,1749579045808,-3330.0,0.00018444,2]
[365286429,1749579045819,-945.0,0.00018444,2]
[365286430,1749579045829,-637.0,0.00018444,2]
[365286431,1749579045839,-802.0,0.00018444,2]
[365286432,1749579045849,-1275.0,0.00018444,2]
[365286433,1749579045859,-927.0,0.00018444,2]
[365286434,1749579045869,-2001.0,0.00018444,2]
[365286435,1749579045880,-558.0,0.00018444,2]
[365286436,1749579045890,-590.0,0.00018444,2]
[365286437,1749579045900,-1256.0,0.00018444,2]
[365286438,1749579045911,-1159.0,0.00018444,2]
[365286439,1749579045921,-512.75251391,0.00018452,2]
[365286440,1749579045931,-1037.00642053,0.00018463,2]
[365286441,1749579045940,-500.0,0.00018474,2]
[365286442,1749579045950,-88888.0,0.00018475,2]
[365286443,1749579045959,-152.0,0.00018488,4]
[365286444,1749579045970,-512.75251391,0.00018555,2]